[Event "*** Titled Tuesday 3|2 Blitz"]
[Site "Chess.com"]
[Date "2015.01.27"]
[Round "1"]
[White "lestri"]
[Black "vovkcoach"]
[Result "0-1"]
[WhiteElo "2218"]
[BlackElo "2465"]
[TimeControl "180+2"]
[EndTime "11:03:52 PST"]
[Termination "vovkcoach won by resignation"]

1. c4 {[%clk 0:02:56.3]} 1... Nf6 {[%clk 0:02:53.7]} 2. Nc3 {[%clk 0:02:56.1]}
2... d5 {[%clk 0:02:40.8]} 3. cxd5 {[%clk 0:02:56.4]} 3... Nxd5 {[%clk
0:02:35.6]} 4. d4 {[%clk 0:02:57.8]} 4... g6 {[%clk 0:02:23.6]} 5. Bd2 {[%clk
0:02:57.7]} 5... Bg7 {[%clk 0:02:18.7]} 6. e4 {[%clk 0:02:57.9]} 6... Nb6 {[%clk
0:02:02.5]} 7. Be3 {[%clk 0:02:56.3]} 7... O-O {[%clk 0:02:03.4]} 8. Qd2 {[%clk
0:02:54.8]} 8... Nc6 {[%clk 0:02:03.5]} 9. d5 {[%clk 0:02:55.2]} 9... Ne5 {[%clk
0:02:00.5]} 10. Bh6 {[%clk 0:02:53.4]} 10... Nbc4 {[%clk 0:01:57.5]} 11. Qc1
{[%clk 0:02:53.6]} 11... Bxh6 {[%clk 0:01:53.1]} 12. Qxh6 {[%clk 0:02:53.1]}
12... Nxb2 {[%clk 0:01:53.5]} 13. f4 {[%clk 0:02:34.7]} 13... Ng4 {[%clk
0:01:52]} 14. Qh4 {[%clk 0:02:35.1]} 14... c6 {[%clk 0:01:53.7]} 15. Qg3 {[%clk
0:02:19.1]} 15... Qa5 {[%clk 0:01:50.4]} 16. h3 {[%clk 0:02:19.8]} 16... Nf6
{[%clk 0:01:46.8]} 17. Kf2 {[%clk 0:02:13.4]} 17... Qxc3 {[%clk 0:01:42.8]} 18.
Qxc3 {[%clk 0:02:11.8]} 18... Nxe4+ {[%clk 0:01:44.7]} 0-1

[Event "*** Titled Tuesday 3|2 Blitz"]
[Site "Chess.com"]
[Date "2015.01.27"]
[Round "1"]
[White "alturas_pacificas"]
[Black "petrpalachev"]
[Result "0-1"]
[WhiteElo "2126"]
[BlackElo "2412"]
[TimeControl "180+2"]
[EndTime "11:03:58 PST"]
[Termination "petrpalachev won by resignation"]

1. d4 {[%clk 0:02:58.6]} 1... Nf6 {[%clk 0:02:58.4]} 2. Bf4 {[%clk 0:02:58.9]}
2... d5 {[%clk 0:02:56.6]} 3. e3 {[%clk 0:02:59.2]} 3... Bf5 {[%clk 0:02:56.1]}
4. c4 {[%clk 0:02:59.8]} 4... e6 {[%clk 0:02:50.8]} 5. Nc3 {[%clk 0:02:59.3]}
5... Bd6 {[%clk 0:02:45.8]} 6. Bg3 {[%clk 0:02:59.1]} 6... c6 {[%clk 0:02:44.4]}
7. Nf3 {[%clk 0:02:59.1]} 7... Bxg3 {[%clk 0:02:44.4]} 8. hxg3 {[%clk
0:02:58.5]} 8... Nbd7 {[%clk 0:02:46]} 9. Qb3 {[%clk 0:02:59.5]} 9... Qb6 {[%clk
0:02:46.4]} 10. c5 {[%clk 0:03:00.2]} 10... Qxb3 {[%clk 0:02:47.5]} 11. axb3
{[%clk 0:03:02.1]} 11... a6 {[%clk 0:02:49]} 12. b4 {[%clk 0:03:03.6]} 12... O-O
{[%clk 0:02:47.8]} 13. Nd2 {[%clk 0:03:03]} 13... e5 {[%clk 0:02:44.6]} 14. Nf3
{[%clk 0:03:03.1]} 14... Rfe8 {[%clk 0:02:39.6]} 15. Kd2 {[%clk 0:03:04]} 15...
Bg4 {[%clk 0:02:38.4]} 16. Be2 {[%clk 0:02:52.7]} 16... Bxf3 {[%clk 0:02:38.3]}
17. Bxf3 {[%clk 0:02:49.4]} 17... exd4 {[%clk 0:02:39.9]} 18. exd4 {[%clk
0:02:50.6]} 18... Re7 {[%clk 0:02:41]} 19. Rae1 {[%clk 0:02:51.4]} 19... Rae8
{[%clk 0:02:42]} 20. Rxe7 {[%clk 0:02:52.1]} 20... Rxe7 {[%clk 0:02:43.9]} 21.
Re1 {[%clk 0:02:53.1]} 21... Kf8 {[%clk 0:02:45]} 22. Rxe7 {[%clk 0:02:53.9]}
22... Kxe7 {[%clk 0:02:46.9]} 23. g4 {[%clk 0:02:50]} 23... h6 {[%clk
0:02:47.8]} 24. Be2 {[%clk 0:02:49.8]} 24... Nf8 {[%clk 0:02:46.3]} 25. f3
{[%clk 0:02:47.7]} 25... Ne6 {[%clk 0:02:46.9]} 26. Ke3 {[%clk 0:02:45]} 26...
Nc7 {[%clk 0:02:40.9]} 27. g3 {[%clk 0:02:41.7]} 27... g5 {[%clk 0:02:29.9]} 28.
f4 {[%clk 0:02:30.2]} 28... Nb5 {[%clk 0:02:30.2]} 29. Bxb5 {[%clk 0:02:26.9]}
29... axb5 {[%clk 0:02:29.6]} 30. f5 {[%clk 0:02:22.9]} 30... Nxg4+ {[%clk
0:02:30.1]} 31. Kf3 {[%clk 0:02:24.3]} 31... h5 {[%clk 0:02:23.7]} 32. Nd1
{[%clk 0:02:12.2]} 32... Kf6 {[%clk 0:02:23.6]} 0-1

[Event "*** Titled Tuesday 3|2 Blitz"]
[Site "Chess.com"]
[Date "2015.01.27"]
[Round "1"]
[White "lorcho"]
[Black "andryusha"]
[Result "1-0"]
[WhiteElo "2406"]
[BlackElo "2044"]
[TimeControl "180+2"]
[EndTime "11:04:32 PST"]
[Termination "lorcho won by resignation"]

1. e4 {[%clk 0:02:57.3]} 1... c5 {[%clk 0:02:56.5]} 2. Nc3 {[%clk 0:02:57.6]}
2... Nc6 {[%clk 0:02:54.6]} 3. g3 {[%clk 0:02:56.9]} 3... g6 {[%clk 0:02:55.5]}
4. Bg2 {[%clk 0:02:58.8]} 4... Bg7 {[%clk 0:02:56.3]} 5. d3 {[%clk 0:03:00.7]}
5... d6 {[%clk 0:02:53.7]} 6. f4 {[%clk 0:03:02.1]} 6... e6 {[%clk 0:02:48.2]}
7. Nf3 {[%clk 0:03:02.1]} 7... Nd4 {[%clk 0:02:49.3]} 8. O-O {[%clk 0:03:04]}
8... Ne7 {[%clk 0:02:50]} 9. Be3 {[%clk 0:03:04.3]} 9... Nec6 {[%clk 0:02:50.2]}
10. e5 {[%clk 0:02:54.3]} 10... dxe5 {[%clk 0:02:41.4]} 11. Nxe5 {[%clk
0:02:52.8]} 11... Nxe5 {[%clk 0:02:39.4]} 12. fxe5 {[%clk 0:02:54.7]} 12... O-O
{[%clk 0:02:33.6]} 13. Ne4 {[%clk 0:02:54.3]} 13... Bxe5 {[%clk 0:02:18.9]} 14.
c3 {[%clk 0:02:54.6]} 14... Nf5 {[%clk 0:02:18.9]} 15. Bxc5 {[%clk 0:02:54.4]}
15... Re8 {[%clk 0:02:04.4]} 16. d4 {[%clk 0:02:37]} 16... Ne3 {[%clk
0:01:57.3]} 17. Qf3 {[%clk 0:02:36.6]} 17... Nxf1 {[%clk 0:01:56.1]} 18. dxe5
{[%clk 0:02:26.2]} 18... Nd2 {[%clk 0:01:45.6]} 19. Nf6+ {[%clk 0:02:24.8]}
19... Kg7 {[%clk 0:01:32]} 20. Nxe8+ {[%clk 0:02:24.6]} 20... Qxe8 {[%clk
0:01:33.2]} 21. Qd3 {[%clk 0:02:01.3]} 21... Qd7 {[%clk 0:01:33]} 22. Bd4 {[%clk
0:01:58.8]} 1-0

[Event "*** Titled Tuesday 3|2 Blitz"]
[Site "Chess.com"]
[Date "2015.01.27"]
[Round "1"]
[White "FairChess_on_YouTube"]
[Black "pKiLz5Rn9b"]
[Result "1-0"]
[WhiteElo "2710"]
[BlackElo "2270"]
[TimeControl "180+2"]
[EndTime "11:05:35 PST"]
[Termination "FairChess_on_YouTube won by resignation"]

1. d4 {[%clk 0:02:58]} 1... e6 {[%clk 0:02:58]} 2. e4 {[%clk 0:02:57.6]} 2... d5
{[%clk 0:02:57.6]} 3. Nc3 {[%clk 0:02:59.2]} 3... Nf6 {[%clk 0:02:57.3]} 4. e5
{[%clk 0:02:59.4]} 4... Nfd7 {[%clk 0:02:58.5]} 5. f4 {[%clk 0:03:01.1]} 5... c5
{[%clk 0:02:59.8]} 6. Nf3 {[%clk 0:03:02.8]} 6... Nc6 {[%clk 0:03:01.1]} 7. Be3
{[%clk 0:03:04.3]} 7... a6 {[%clk 0:03:02.7]} 8. Qd2 {[%clk 0:03:04.1]} 8... b5
{[%clk 0:03:03.9]} 9. Nd1 {[%clk 0:03:05.1]} 9... Qb6 {[%clk 0:03:00.3]} 10. Be2
{[%clk 0:03:04.1]} 10... f6 {[%clk 0:02:56.3]} 11. c3 {[%clk 0:02:59.4]} 11...
Bb7 {[%clk 0:02:48.7]} 12. O-O {[%clk 0:02:59.7]} 12... O-O-O {[%clk 0:02:45.7]}
13. a4 {[%clk 0:02:51]} 13... b4 {[%clk 0:02:44.1]} 14. Kh1 {[%clk 0:02:48.5]}
14... a5 {[%clk 0:02:40.8]} 15. f5 {[%clk 0:02:45.7]} 15... fxe5 {[%clk
0:02:37]} 16. fxe6 {[%clk 0:02:45.6]} 16... Nf6 {[%clk 0:02:38.3]} 17. dxc5
{[%clk 0:02:33.9]} 17... Bxc5 {[%clk 0:02:37.5]} 18. Bxc5 {[%clk 0:02:34.9]}
18... Qxc5 {[%clk 0:02:37.4]} 19. cxb4 {[%clk 0:02:36.5]} 19... axb4 {[%clk
0:02:38.1]} 20. Rc1 {[%clk 0:02:35.5]} 20... Qb6 {[%clk 0:02:38.4]} 21. Nxe5
{[%clk 0:02:35.6]} 21... Ne4 {[%clk 0:02:13.9]} 22. Qe3 {[%clk 0:02:36]} 22...
Qxe3 {[%clk 0:01:50.1]} 23. Nxe3 {[%clk 0:02:35.9]} 23... Rd6 {[%clk 0:01:39.8]}
24. Nf7 {[%clk 0:02:33.7]} 24... Re8 {[%clk 0:01:20.8]} 25. Nxd6+ {[%clk
0:02:34.4]} 25... Nxd6 {[%clk 0:01:21.7]} 26. Nxd5 {[%clk 0:02:36]} 26... Kb8
{[%clk 0:01:22.5]} 27. Bf3 {[%clk 0:02:30.2]} 27... Nd4 {[%clk 0:01:21.6]} 28.
Nc7 {[%clk 0:02:30.4]} 28... Re7 {[%clk 0:01:09.4]} 29. Bxb7 {[%clk 0:02:31.2]}
29... Kxb7 {[%clk 0:01:08.6]} 30. Nb5 {[%clk 0:02:32.1]} 30... N4xb5 {[%clk
0:01:07.9]} 31. axb5 {[%clk 0:02:32.8]} 31... Rxe6 {[%clk 0:01:09.5]} 32. Rc6
{[%clk 0:02:33.4]} 32... b3 {[%clk 0:00:47.2]} 33. Rd1 {[%clk 0:02:30]} 33...
Ne4 {[%clk 0:00:37.5]} 34. Rd7+ {[%clk 0:02:27.3]} 1-0

[Event "*** Titled Tuesday 3|2 Blitz"]
[Site "Chess.com"]
[Date "2015.01.27"]
[Round "1"]
[White "stepanosinovsky"]
[Black "exoticprincess"]
[Result "0-1"]
[WhiteElo "2247"]
[BlackElo "2620"]
[TimeControl "180+2"]
[EndTime "11:05:50 PST"]
[Termination "exoticprincess won by resignation"]

1. e4 {[%clk 0:02:57.1]} 1... c6 {[%clk 0:02:32.6]} 2. d4 {[%clk 0:02:55.7]}
2... d5 {[%clk 0:02:30.4]} 3. exd5 {[%clk 0:02:56.7]} 3... cxd5 {[%clk
0:02:29.2]} 4. c4 {[%clk 0:02:57.7]} 4... Nf6 {[%clk 0:02:29.1]} 5. Nc3 {[%clk
0:02:57.7]} 5... e6 {[%clk 0:02:30.9]} 6. Nf3 {[%clk 0:02:58.8]} 6... Bb4 {[%clk
0:02:30.1]} 7. Bd3 {[%clk 0:02:59.1]} 7... dxc4 {[%clk 0:02:29.7]} 8. Bxc4
{[%clk 0:03:00.3]} 8... O-O {[%clk 0:02:31.6]} 9. O-O {[%clk 0:03:01.1]} 9...
Nc6 {[%clk 0:02:33.5]} 10. Bg5 {[%clk 0:02:56.4]} 10... h6 {[%clk 0:02:33.9]}
11. Bh4 {[%clk 0:02:55.8]} 11... Be7 {[%clk 0:02:35.8]} 12. a3 {[%clk
0:02:50.2]} 12... Nh5 {[%clk 0:02:34.8]} 13. Bxe7 {[%clk 0:02:39.7]} 13... Nxe7
{[%clk 0:02:36.4]} 14. Qd3 {[%clk 0:02:26.5]} 14... Nf6 {[%clk 0:02:37.6]} 15.
Rad1 {[%clk 0:02:23.9]} 15... b6 {[%clk 0:02:35.4]} 16. Ba2 {[%clk 0:02:16.7]}
16... Bb7 {[%clk 0:02:36.9]} 17. Ne5 {[%clk 0:02:15.6]} 17... Ned5 {[%clk
0:02:16.9]} 18. Rfe1 {[%clk 0:02:01.7]} 18... Nf4 {[%clk 0:02:07.6]} 19. Qg3
{[%clk 0:01:43.8]} 19... N6h5 {[%clk 0:01:58.8]} 20. Qg4 {[%clk 0:01:35.5]}
20... f5 {[%clk 0:01:57.3]} 21. Bxe6+ {[%clk 0:01:34.9]} 21... Nxe6 {[%clk
0:01:57.9]} 22. Qxh5 {[%clk 0:01:34.4]} 22... Nf4 {[%clk 0:01:59.6]} 0-1

[Event "*** Titled Tuesday 3|2 Blitz"]
[Site "Chess.com"]
[Date "2015.01.27"]
[Round "1"]
[White "Beca95"]
[Black "oggy1984"]
[Result "1-0"]
[WhiteElo "2486"]
[BlackElo "2183"]
[TimeControl "180+2"]
[EndTime "11:07:06 PST"]
[Termination "Beca95 won by resignation"]

1. d4 {[%clk 0:02:56.3]} 1... Nf6 {[%clk 0:02:33.3]} 2. c4 {[%clk 0:02:55.1]}
2... c5 {[%clk 0:02:33.1]} 3. d5 {[%clk 0:02:55.7]} 3... b5 {[%clk 0:02:33.9]}
4. Nf3 {[%clk 0:02:56.5]} 4... g6 {[%clk 0:02:34.5]} 5. cxb5 {[%clk 0:02:55.6]}
5... a6 {[%clk 0:02:34.4]} 6. b6 {[%clk 0:02:56.9]} 6... d6 {[%clk 0:02:35.2]}
7. Nc3 {[%clk 0:02:56.6]} 7... Qxb6 {[%clk 0:02:35.5]} 8. e4 {[%clk 0:02:57.2]}
8... Bg7 {[%clk 0:02:36.4]} 9. h3 {[%clk 0:02:58.7]} 9... O-O {[%clk 0:02:37.4]}
10. Bd3 {[%clk 0:03:00.3]} 10... Nbd7 {[%clk 0:02:37.5]} 11. O-O {[%clk
0:03:01.4]} 11... Rb8 {[%clk 0:02:26.6]} 12. Qe2 {[%clk 0:02:56.4]} 12... Ne8
{[%clk 0:02:25]} 13. Rb1 {[%clk 0:02:53.8]} 13... Nc7 {[%clk 0:02:21.6]} 14. Bg5
{[%clk 0:02:53.7]} 14... Re8 {[%clk 0:02:16.6]} 15. Nd2 {[%clk 0:02:18.2]} 15...
Nb5 {[%clk 0:02:05.7]} 16. Nc4 {[%clk 0:02:17.8]} 16... Qc7 {[%clk 0:01:58.2]}
17. Qd2 {[%clk 0:02:18.3]} 17... Ne5 {[%clk 0:01:51.5]} 18. Nxe5 {[%clk
0:02:14.3]} 18... Bxe5 {[%clk 0:01:51.8]} 19. f4 {[%clk 0:02:11.8]} 19... Bg7
{[%clk 0:01:48.9]} 20. f5 {[%clk 0:02:11.6]} 20... Nd4 {[%clk 0:01:30.4]} 21. f6
{[%clk 0:02:06.4]} 21... exf6 {[%clk 0:01:25.4]} 22. Bxf6 {[%clk 0:02:06.4]}
22... Bxf6 {[%clk 0:01:21.3]} 23. Rxf6 {[%clk 0:02:08.3]} 23... c4 {[%clk
0:01:08.2]} 24. Bf1 {[%clk 0:01:54.6]} 24... Qc5 {[%clk 0:01:06.8]} 25. Qf2
{[%clk 0:01:54]} 25... Re7 {[%clk 0:00:55.2]} 26. Rd1 {[%clk 0:01:52.1]} 26...
Nb5 {[%clk 0:00:32.4]} 27. Qxc5 {[%clk 0:01:51.7]} 27... dxc5 {[%clk 0:00:32.5]}
28. Re1 {[%clk 0:00:59.3]} 28... Kg7 {[%clk 0:00:23.4]} 29. Rc6 {[%clk
0:00:58.4]} 29... Nxc3 {[%clk 0:00:21.6]} 30. bxc3 {[%clk 0:00:58.5]} 30... Rxe4
{[%clk 0:00:22.6]} 31. Rxe4 {[%clk 0:00:58.6]} 1-0

[Event "*** Titled Tuesday 3|2 Blitz"]
[Site "Chess.com"]
[Date "2015.01.27"]
[Round "1"]
[White "ChessWarrior7197"]
[Black "MinhGTrAn"]
[Result "0-1"]
[WhiteElo "2144"]
[BlackElo "2449"]
[TimeControl "180+2"]
[EndTime "11:07:11 PST"]
[Termination "MinhGTrAn won by resignation"]

1. Nf3 {[%clk 0:02:59.3]} 1... Nf6 {[%clk 0:02:58]} 2. g3 {[%clk 0:03:00.2]}
2... b6 {[%clk 0:02:57.8]} 3. Bg2 {[%clk 0:03:01.4]} 3... Bb7 {[%clk 0:02:59.7]}
4. O-O {[%clk 0:03:02.4]} 4... e6 {[%clk 0:03:01]} 5. b3 {[%clk 0:03:02.8]} 5...
Be7 {[%clk 0:03:02.3]} 6. Bb2 {[%clk 0:03:04]} 6... O-O {[%clk 0:03:03.4]} 7. d4
{[%clk 0:03:05.2]} 7... d6 {[%clk 0:03:00.7]} 8. Nbd2 {[%clk 0:03:06]} 8... Nbd7
{[%clk 0:03:01.8]} 9. c4 {[%clk 0:03:06.8]} 9... c5 {[%clk 0:03:01.8]} 10. Qc2
{[%clk 0:03:06.8]} 10... cxd4 {[%clk 0:03:02.8]} 11. Nxd4 {[%clk 0:03:07.6]}
11... Bxg2 {[%clk 0:03:04.7]} 12. Kxg2 {[%clk 0:03:08.9]} 12... Qc7 {[%clk
0:03:06.4]} 13. Rad1 {[%clk 0:03:07.7]} 13... a6 {[%clk 0:03:07.8]} 14. Qb1
{[%clk 0:03:05.9]} 14... Rfd8 {[%clk 0:03:03.3]} 15. Kg1 {[%clk 0:03:06.3]}
15... Rac8 {[%clk 0:02:55.6]} 16. Rc1 {[%clk 0:03:07]} 16... Qb7 {[%clk
0:02:44]} 17. Rfd1 {[%clk 0:03:07.6]} 17... Ne5 {[%clk 0:02:32.4]} 18. N2f3
{[%clk 0:03:02.5]} 18... Ng6 {[%clk 0:02:31.2]} 19. a4 {[%clk 0:02:59.3]} 19...
Ne4 {[%clk 0:02:18.4]} 20. h4 {[%clk 0:02:48.2]} 20... Ne5 {[%clk 0:02:07.4]}
21. Kg2 {[%clk 0:02:23.8]} 21... Ng4 {[%clk 0:02:01.7]} 22. Rf1 {[%clk
0:02:15.9]} 22... Nd2 {[%clk 0:01:57.2]} 23. Qa1 {[%clk 0:02:11.7]} 23... e5
{[%clk 0:01:52.2]} 24. Rfd1 {[%clk 0:01:53.4]} 24... Ne4 {[%clk 0:01:53.3]} 25.
Nf5 {[%clk 0:01:53.3]} 25... Nexf2 {[%clk 0:01:51.6]} 26. Nxe7+ {[%clk
0:01:53.3]} 26... Qxe7 {[%clk 0:01:53.5]} 27. Re1 {[%clk 0:01:50.5]} 27... Ne4
{[%clk 0:01:51.5]} 28. Rcd1 {[%clk 0:01:50.6]} 28... Ne3+ {[%clk 0:01:52]} 29.
Kh2 {[%clk 0:01:51]} 29... Nxd1 {[%clk 0:01:51.7]} 30. Rxd1 {[%clk 0:01:52.5]}
30... Qe6 {[%clk 0:01:51.4]} 31. Nd2 {[%clk 0:01:49.4]} 31... Qg4 {[%clk
0:01:49.7]} 32. Nxe4 {[%clk 0:01:49.9]} 32... Qxe2+ {[%clk 0:01:50.6]} 33. Kg1
{[%clk 0:01:46.3]} 33... Qxe4 {[%clk 0:01:51.4]} 34. Qc1 {[%clk 0:01:45.8]}
34... Qf3 {[%clk 0:01:49.5]} 35. Rf1 {[%clk 0:01:41.7]} 35... Qxg3+ {[%clk
0:01:49.8]} 36. Kh1 {[%clk 0:01:43.4]} 36... Qxh4+ {[%clk 0:01:51.3]} 37. Kg1
{[%clk 0:01:45]} 37... Re8 {[%clk 0:01:50.2]} 38. Qe1 {[%clk 0:01:27.4]} 38...
Qg4+ {[%clk 0:01:38.7]} 39. Kf2 {[%clk 0:01:27]} 39... Re6 {[%clk 0:01:38]} 40.
Ke3 {[%clk 0:01:26.7]} 40... b5 {[%clk 0:01:30.5]} 41. axb5 {[%clk 0:01:26.6]}
41... axb5 {[%clk 0:01:32.4]} 42. cxb5 {[%clk 0:01:26]} 42... d5 {[%clk
0:01:33.8]} 43. Qa5 {[%clk 0:01:21.2]} 43... d4+ {[%clk 0:01:28]} 44. Kd2 {[%clk
0:01:21.7]} 44... Qg2+ {[%clk 0:01:28.4]} 45. Ke1 {[%clk 0:01:22.6]} 45... Qxb2
{[%clk 0:01:25.2]} 46. Qd2 {[%clk 0:01:17.9]} 0-1

[Event "*** Titled Tuesday 3|2 Blitz"]
[Site "Chess.com"]
[Date "2015.01.27"]
[Round "1"]
[White "GasconJR"]
[Black "jbj"]
[Result "1-0"]
[WhiteElo "1971"]
[BlackElo "2259"]
[TimeControl "180+2"]
[EndTime "11:07:14 PST"]
[Termination "GasconJR won by checkmate"]

1. e4 {[%clk 0:02:57.1]} 1... d6 {[%clk 0:02:57.1]} 2. d4 {[%clk 0:02:52.2]}
2... Nf6 {[%clk 0:02:58]} 3. Nc3 {[%clk 0:02:53.8]} 3... e5 {[%clk 0:02:58.7]}
4. Nf3 {[%clk 0:02:54.9]} 4... Nbd7 {[%clk 0:02:59.3]} 5. g4 {[%clk 0:02:56.1]}
5... Nxg4 {[%clk 0:02:59.3]} 6. Rg1 {[%clk 0:02:56.8]} 6... exd4 {[%clk
0:03:00.6]} 7. Nxd4 {[%clk 0:02:50]} 7... h5 {[%clk 0:02:18.8]} 8. h3 {[%clk
0:02:46.3]} 8... Nge5 {[%clk 0:02:14.4]} 9. Bg5 {[%clk 0:02:44.2]} 9... Nf6
{[%clk 0:02:05]} 10. f4 {[%clk 0:02:41.7]} 10... Nc6 {[%clk 0:01:52.8]} 11. Nxc6
{[%clk 0:02:41.9]} 11... bxc6 {[%clk 0:01:53.1]} 12. Qf3 {[%clk 0:02:43.4]}
12... Be7 {[%clk 0:01:42.5]} 13. O-O-O {[%clk 0:02:44]} 13... Bb7 {[%clk
0:01:35.6]} 14. e5 {[%clk 0:02:35.7]} 14... Nd7 {[%clk 0:01:35.2]} 15. exd6
{[%clk 0:02:11.3]} 15... Bxg5 {[%clk 0:01:20.1]} 16. Re1+ {[%clk 0:01:58.9]}
16... Kf8 {[%clk 0:01:15.2]} 17. fxg5 {[%clk 0:01:59.3]} 17... cxd6 {[%clk
0:01:12.9]} 18. Qf4 {[%clk 0:01:35.3]} 18... Ne5 {[%clk 0:01:08.9]} 19. Ne4
{[%clk 0:01:35.3]} 19... Qa5 {[%clk 0:00:57]} 20. Bg2 {[%clk 0:01:14.6]} 20...
Rd8 {[%clk 0:00:31.9]} 21. Nxd6 {[%clk 0:01:13.2]} 21... Rxd6 {[%clk 0:00:32]}
22. Rxe5 {[%clk 0:01:12.9]} 22... Qb6 {[%clk 0:00:29.7]} 23. Rge1 {[%clk
0:01:10.6]} 23... Rd8 {[%clk 0:00:08.9]} 24. Re7 {[%clk 0:01:10.4]} 24... f6
{[%clk 0:00:03]} 25. gxf6 {[%clk 0:01:10.8]} 25... g6 {[%clk 0:00:04.1]} 26. Qe5
{[%clk 0:00:52.3]} 26... Bc8 {[%clk 0:00:02.8]} 27. Rf7+ {[%clk 0:00:51.3]}
27... Kg8 {[%clk 0:00:03.2]} 28. Rg7+ {[%clk 0:00:52]} 28... Kf8 {[%clk
0:00:04.1]} 29. Qe7# {[%clk 0:00:53.6]} 1-0

[Event "*** Titled Tuesday 3|2 Blitz"]
[Site "Chess.com"]
[Date "2015.01.27"]
[Round "1"]
[White "jcibarra"]
[Black "kleber2007"]
[Result "1-0"]
[WhiteElo "2424"]
[BlackElo "2140"]
[TimeControl "180+2"]
[EndTime "11:07:18 PST"]
[Termination "jcibarra won by resignation"]

1. e4 {[%clk 0:02:57.8]} 1... c5 {[%clk 0:02:53.6]} 2. Nf3 {[%clk 0:02:58.9]}
2... e6 {[%clk 0:02:53.7]} 3. d4 {[%clk 0:03:00.4]} 3... cxd4 {[%clk 0:02:53.7]}
4. Nxd4 {[%clk 0:03:02.3]} 4... a6 {[%clk 0:02:51.9]} 5. c4 {[%clk 0:03:03.6]}
5... Nf6 {[%clk 0:02:42.8]} 6. Nc3 {[%clk 0:03:04.5]} 6... Qc7 {[%clk
0:02:42.9]} 7. a3 {[%clk 0:03:05.3]} 7... b6 {[%clk 0:02:43.9]} 8. Be3 {[%clk
0:03:06.8]} 8... Bb7 {[%clk 0:02:44.3]} 9. f3 {[%clk 0:03:08.5]} 9... Be7 {[%clk
0:02:42.4]} 10. Be2 {[%clk 0:03:09.8]} 10... O-O {[%clk 0:02:42.8]} 11. Rc1
{[%clk 0:03:11.4]} 11... d6 {[%clk 0:02:40.9]} 12. Qd2 {[%clk 0:03:12.8]} 12...
Nbd7 {[%clk 0:02:31.4]} 13. O-O {[%clk 0:03:14.2]} 13... Rfe8 {[%clk 0:02:29.1]}
14. b4 {[%clk 0:03:15.6]} 14... Rac8 {[%clk 0:02:27.6]} 15. Rc2 {[%clk
0:03:17.1]} 15... Qb8 {[%clk 0:02:27.1]} 16. Rb1 {[%clk 0:03:18.2]} 16... Bd8
{[%clk 0:02:26.9]} 17. Kh1 {[%clk 0:03:19.3]} 17... d5 {[%clk 0:02:19.6]} 18.
cxd5 {[%clk 0:03:13.1]} 18... exd5 {[%clk 0:02:20.6]} 19. Nxd5 {[%clk
0:03:10.1]} 19... Rxc2 {[%clk 0:01:51]} 20. Nxf6+ {[%clk 0:02:46.6]} 20... Nxf6
{[%clk 0:01:42.2]} 21. Qxc2 {[%clk 0:02:47.2]} 21... Bc7 {[%clk 0:01:36.7]} 22.
Bg1 {[%clk 0:02:47.3]} 22... h5 {[%clk 0:01:31.6]} 23. Nf5 {[%clk 0:02:46.8]}
23... g6 {[%clk 0:01:28.6]} 24. Ne3 {[%clk 0:02:20.9]} 24... h4 {[%clk 0:01:23]}
25. Rd1 {[%clk 0:02:12.5]} 25... h3 {[%clk 0:01:21.8]} 26. Bf1 {[%clk
0:02:05.8]} 26... hxg2+ {[%clk 0:01:17.8]} 27. Bxg2 {[%clk 0:02:07.7]} 27... Nh5
{[%clk 0:01:00.2]} 28. Nd5 {[%clk 0:02:06.5]} 28... Bxd5 {[%clk 0:00:59.9]} 29.
exd5 {[%clk 0:01:54.7]} 29... Nf4 {[%clk 0:00:57.4]} 30. Bf1 {[%clk 0:01:55.1]}
30... b5 {[%clk 0:00:55.1]} 31. Qc6 {[%clk 0:01:54.6]} 31... Bd6 {[%clk
0:00:45.5]} 32. Bc5 {[%clk 0:01:53.7]} 32... Bxc5 {[%clk 0:00:41.1]} 33. bxc5
{[%clk 0:01:52.4]} 33... Rc8 {[%clk 0:00:40.9]} 34. Qb6 {[%clk 0:01:45.5]} 34...
Qe5 {[%clk 0:00:37.6]} 35. d6 {[%clk 0:01:28]} 35... Qe3 {[%clk 0:00:25.3]} 36.
Qb7 {[%clk 0:01:29]} 36... Rxc5 {[%clk 0:00:21.9]} 37. d7 {[%clk 0:01:27.8]}
37... Rd5 {[%clk 0:00:16.1]} 38. Qxd5 {[%clk 0:01:28]} 38... Nxd5 {[%clk
0:00:16.6]} 39. d8=Q+ {[%clk 0:01:29.3]} 39... Kg7 {[%clk 0:00:18.4]} 40. Qxd5
{[%clk 0:01:31.1]} 1-0

[Event "*** Titled Tuesday 3|2 Blitz"]
[Site "Chess.com"]
[Date "2015.01.27"]
[Round "1"]
[White "Rijeka1999"]
[Black "HansCoolNiemann"]
[Result "0-1"]
[WhiteElo "2279"]
[BlackElo "1709"]
[TimeControl "180+2"]
[EndTime "11:07:47 PST"]
[Termination "HansCoolNiemann won by checkmate"]

1. e4 {[%clk 0:02:56.7]} 1... d5 {[%clk 0:02:48]} 2. exd5 {[%clk 0:02:56.1]}
2... Qxd5 {[%clk 0:02:49.9]} 3. Nf3 {[%clk 0:02:57.3]} 3... c6 {[%clk
0:02:50.2]} 4. d4 {[%clk 0:02:57.9]} 4... Bg4 {[%clk 0:02:50.2]} 5. Be2 {[%clk
0:02:58.2]} 5... Nd7 {[%clk 0:02:49]} 6. O-O {[%clk 0:02:58.6]} 6... Ngf6 {[%clk
0:02:42.8]} 7. c4 {[%clk 0:02:55]} 7... Qd6 {[%clk 0:02:42.9]} 8. b3 {[%clk
0:02:52]} 8... e6 {[%clk 0:02:16.5]} 9. Bb2 {[%clk 0:02:47.5]} 9... Qc7 {[%clk
0:02:17.4]} 10. Nbd2 {[%clk 0:02:46.9]} 10... Bd6 {[%clk 0:02:18.1]} 11. Re1
{[%clk 0:02:37]} 11... O-O {[%clk 0:02:16.5]} 12. Nf1 {[%clk 0:02:37.6]} 12...
Rad8 {[%clk 0:02:03.7]} 13. Qc2 {[%clk 0:02:26.2]} 13... Bf4 {[%clk 0:01:44.3]}
14. Ng3 {[%clk 0:02:21.4]} 14... Rfe8 {[%clk 0:01:31.1]} 15. Rad1 {[%clk
0:02:18.6]} 15... Nf8 {[%clk 0:01:18.2]} 16. h3 {[%clk 0:01:41.2]} 16... Bxf3
{[%clk 0:01:18]} 17. Bxf3 {[%clk 0:01:38.7]} 17... Bxg3 {[%clk 0:01:19]} 18.
fxg3 {[%clk 0:01:40]} 18... Qxg3 {[%clk 0:01:19.6]} 19. Re3 {[%clk 0:01:37.2]}
19... Qd6 {[%clk 0:01:18]} 20. Rde1 {[%clk 0:01:36.3]} 20... Ng6 {[%clk
0:01:18.6]} 21. Qf2 {[%clk 0:01:36.4]} 21... Rf8 {[%clk 0:01:13.2]} 22. R3e2
{[%clk 0:01:31.3]} 22... Nf4 {[%clk 0:01:10.7]} 23. Re3 {[%clk 0:01:29.1]} 23...
Rfe8 {[%clk 0:01:02.7]} 24. Re5 {[%clk 0:01:25.8]} 24... Nd3 {[%clk 0:01:02.9]}
25. Qc2 {[%clk 0:01:23.7]} 25... Nxb2 {[%clk 0:00:55.3]} 26. Qxb2 {[%clk
0:01:22.5]} 26... Qxd4+ {[%clk 0:00:55.5]} 27. Qxd4 {[%clk 0:01:23.7]} 27...
Rxd4 {[%clk 0:00:56.6]} 28. R1e2 {[%clk 0:01:20]} 28... Red8 {[%clk 0:00:57.4]}
29. Kf2 {[%clk 0:01:18.2]} 29... Nd7 {[%clk 0:00:56.5]} 30. Ra5 {[%clk
0:01:18.6]} 30... a6 {[%clk 0:00:57.1]} 31. Rg5 {[%clk 0:01:15.6]} 31... h6
{[%clk 0:00:56.8]} 32. Rg3 {[%clk 0:01:12.4]} 32... Nf6 {[%clk 0:00:55.9]} 33.
c5 {[%clk 0:01:06.3]} 33... Rd2 {[%clk 0:00:54.8]} 34. Ke3 {[%clk 0:01:06.3]}
34... R8d3+ {[%clk 0:00:44.7]} 35. Kf2 {[%clk 0:01:02.2]} 35... Ne4+ {[%clk
0:00:34.7]} 36. Ke1 {[%clk 0:01:00]} 36... Rd1# {[%clk 0:00:32.9]} 0-1